fUSD/lending_fUSD_20260115
["ID","MTS","AMOUNT","RATE_DAILY","PERIOD"]
[402080641,1768513832227,-500.0,0.00016973,2]
[402080642,1768513832236,-500.0,0.00016973,2]
[402080643,1768513832246,-177.67823964,0.00016973,2]
[402080644,1768513832256,-500.0,0.00016973,2]
[402080645,1768513832265,-500.0,0.00016973,2]
[402080646,1768513832274,-250.0,0.00017,2]
[402080647,1768513832284,-3605.84,0.00017,2]
[402080648,1768513832293,-1660.31,0.00017002,2]
[402080649,1768513832303,-1600.0,0.00017142,2]
[402080650,1768513832312,-1442.73304028,0.00017166,7]
[402080651,1768513832321,-730.0,0.00017214,2]
[402080652,1768513832331,-500.0,0.00017221,2]
[402080653,1768513832340,-1660.31,0.00017276,2]
[402080654,1768513832349,-1101.0,0.00017394,2]
[402080655,1768513832358,-166.66,0.000174,2]
[402080656,1768513832368,-5000.0,0.00017477,2]
[402080657,1768513832377,-300.0,0.00017477,2]
[402080658,1768513832387,-300.0,0.00017477,2]
[402080659,1768513832396,-600.0,0.00017477,2]
[402080660,1768513832406,-193.0,0.00017477,2]
[402080661,1768513832415,-200.0,0.00017477,2]
[402080662,1768513832424,-420.0,0.00017482,2]
[402080663,1768513832433,-250.0,0.00017501,2]
[402080664,1768513832443,-2500.0,0.00017501,2]
[402080665,1768513832452,-195.0,0.00017501,2]
[402080666,1768513832462,-300.0,0.00017501,2]
[402080667,1768513832471,-2500.0,0.00017505,2]
[402080668,1768513832480,-1000.0,0.00017521,2]
[402080669,1768513832490,-1000.0,0.00017521,2]
[402080670,1768513832500,-500.0,0.00017521,2]
[402080671,1768513832509,-1081.21291335,0.00017521,2]
[402080672,1768513832518,-1000.0,0.00017521,2]
[402080673,1768513832528,-1000.0,0.00017521,2]
[402080674,1768513832537,-924.12086977,0.00017521,2]
[402080675,1768513832547,-1000.0,0.00017521,2]
[402080676,1768513832557,-1000.0,0.00017521,2]
[402080677,1768513832566,-1660.31,0.0001755,2]
[402080678,1768513832576,-1680.0,0.00017569,2]
[402080679,1768513832585,-338.19553929,0.00017589,2]
[402080680,1768513832599,-2500.0,0.00017593,2]
[402080681,1768513832610,-600.0,0.00017593,2]
[402080682,1768513832620,-195.0,0.00017593,2]
[402080683,1768513832629,-155.21677592,0.00017593,2]
[402080684,1768513832639,-250.0,0.00017593,2]
[402080685,1768513832649,-1660.31,0.00017824,2]
[402080686,1768513832659,-10000.0,0.000179,2]
[402080687,1768513832668,-202.0,0.0001795,2]
[402080688,1768513832680,-500.0,0.00017972,2]
[402080689,1768513832690,-500.0,0.00017972,2]
[402080690,1768513832699,-500.0,0.00017972,2]
[402080691,1768513832708,-500.0,0.00017972,2]
[402080692,1768513832718,-500.0,0.00017973,2]
[402080693,1768513832727,-386.68582659,0.00017973,2]
[402080694,1768513832737,-150.0,0.00017973,2]
[402080695,1768513832750,-500.0,0.00017973,2]
[402080696,1768513832759,-500.0,0.00017973,2]
[402080697,1768513832768,-500.0,0.00017973,2]
[402080698,1768513832779,-500.0,0.00017973,2]
[402080699,1768513832788,-500.0,0.00017973,2]
[402080700,1768513832797,-512.58675801,0.00017973,2]
[402080701,1768513832806,-500.0,0.00017973,2]
[402080702,1768513832815,-500.0,0.00017973,2]
[402080703,1768513832825,-500.0,0.00017973,2]
[402080704,1768513832834,-500.0,0.00017973,2]
[402080705,1768513832843,-321.47728481,0.00017973,2]
[402080706,1768513832852,-500.0,0.00017973,2]
[402080707,1768513832861,-500.0,0.00017973,2]
[402080708,1768513832870,-500.0,0.00017973,2]
[402080709,1768513832880,-500.0,0.00017973,2]
[402080710,1768513832888,-516.71634073,0.00017973,2]
[402080711,1768513832898,-500.0,0.00017973,2]
[402080712,1768513832907,-500.0,0.00017973,2]
[402080713,1768513832915,-500.0,0.00017973,2]
[402080714,1768513832925,-500.0,0.00017973,2]
[402080715,1768513832934,-500.0,0.00017973,2]
[402080716,1768513832943,-500.0,0.00017973,2]
[402080717,1768513832952,-500.0,0.00017973,2]
[402080718,1768513832961,-500.0,0.00017973,2]
[402080719,1768513832970,-500.0,0.00017973,2]
[402080720,1768513832979,-500.0,0.00017973,2]
[402080721,1768513832988,-500.0,0.00017973,2]
[402080722,1768513832997,-500.0,0.00017973,2]
[402080723,1768513833007,-500.0,0.00017973,2]
[402080724,1768513833016,-500.0,0.00017973,2]
[402080725,1768513833025,-500.0,0.00017973,2]
[402080726,1768513833034,-500.0,0.00017973,2]
[402080727,1768513833044,-166.66,0.00017974,2]
[402080728,1768513833054,-1500.0,0.00018068,2]
[402080729,1768513833064,-500.0,0.00018068,2]
[402080730,1768513833073,-1503.12055844,0.00018068,2]
[402080731,1768513833082,-1000.0,0.00018068,2]
[402080732,1768513833092,-1500.0,0.00018068,2]
[402080733,1768513833101,-1500.0,0.00018068,2]
[402080734,1768513833111,-235.0,0.00018087,2]
[402080735,1768513833120,-236.0,0.00018096,2]
[402080736,1768513833129,-1660.31,0.00018098,2]
[402080737,1768513833139,-500.0,0.00018099,2]
[402080738,1768513833148,-235.0,0.00018123,2]
[402080739,1768513833158,-235.0,0.00018166,2]
[402080740,1768513833166,-235.0,0.00018176,2]
[402080741,1768513833176,-1483.43426034,0.00018225,2]
[402080742,1768513833185,-235.0,0.00018248,2]
[402080743,1768513833194,-235.0,0.00018263,2]
[402080744,1768513833204,-1101.0,0.00018309,2]
[402080745,1768513833213,-900.0,0.00018342,2]
[402080746,1768513833222,-235.0,0.00018354,2]
[402080747,1768513833231,-962.0,0.00018354,2]
[402080748,1768513833240,-235.0,0.00018364,2]
[402080749,1768513833249,-1660.31,0.00018372,2]
[402080750,1768513833259,-235.0,0.00018401,2]
[402080751,1768513833268,-235.0,0.00018436,2]
[402080752,1768513833277,-1000.0,0.00018521,2]
[402080753,1768513833287,-300.0,0.00018521,2]
[402080754,1768513833296,-1000.0,0.00018521,2]
[402080755,1768513833306,-1000.0,0.00018521,2]
[402080756,1768513833315,-1000.0,0.00018521,2]
[402080757,1768513833324,-1000.0,0.00018521,2]
[402080758,1768513833333,-1000.0,0.00018521,2]
[402080759,1768513833343,-1000.0,0.00018521,2]
[402080760,1768513833352,-1000.0,0.00018521,2]
[402080761,1768513833361,-1000.0,0.00018521,2]
[402080762,1768513833371,-1000.0,0.00018521,2]
[402080763,1768513833380,-1000.0,0.00018521,2]
[402080764,1768513833389,-1000.0,0.00018521,2]
[402080765,1768513833398,-1000.0,0.00018521,2]
[402080766,1768513833408,-227.35473461,0.00018521,2]
[402080767,1768513833417,-1000.0,0.00018521,2]
[402080768,1768513833426,-1000.0,0.00018521,2]
[402080769,1768513833435,-1000.0,0.00018521,2]
[402080770,1768513833444,-1000.0,0.00018521,2]
[402080771,1768513833453,-1000.0,0.00018521,2]
[402080772,1768513833463,-1116.7339851,0.00018521,2]
[402080773,1768513833472,-1000.0,0.00018521,2]
[402080774,1768513833481,-359.60486913,0.00018521,2]
[402080775,1768513833490,-1000.0,0.00018521,2]
[402080776,1768513833499,-1000.0,0.00018521,2]
[402080777,1768513833509,-353.0517463,0.00018521,2]
[402080778,1768513833519,-1000.0,0.00018521,2]
[402080779,1768513833528,-1000.0,0.00018521,2]
[402080780,1768513833537,-1000.0,0.00018521,2]
[402080781,1768513833546,-235.0,0.00018546,2]
[402080782,1768513833556,-166.66,0.00018549,2]
[402080783,1768513833565,-2000.0,0.00018616,2]
[402080784,1768513833574,-2000.0,0.00018616,2]
[402080785,1768513833583,-500.0,0.00018626,2]
[402080786,1768513833592,-500.0,0.00018626,2]
[402080787,1768513833602,-500.0,0.00018626,2]
[402080788,1768513833612,-500.0,0.00018626,2]
[402080789,1768513833622,-500.0,0.00018626,2]
[402080790,1768513833631,-551.28811082,0.00018626,2]
[402080791,1768513833640,-235.0,0.00018627,2]
[402080792,1768513833649,-1660.31,0.00018646,2]
[402080793,1768513833658,-1580.78,0.000188,2]
[402080794,1768513833667,-235.0,0.00018801,2]
[402080795,1768513833678,-235.0,0.00018892,2]
[402080796,1768513833688,-235.0,0.00018896,2]
[402080797,1768513833697,-346.0666153,0.000189,2]
[402080798,1768513833706,-1660.31,0.0001892,2]
[402080799,1768513833716,-235.0,0.0001895,2]
[402080800,1768513833726,-235.0,0.00018979,2]
[402080801,1768513833735,-45917.30991453,0.00019,2]
[402080802,1768513834583,-33051.30304761,0.00019,2]
[402080803,1768513834593,-2257.39803619,0.00019,2]
[402080804,1768513834602,-300.0,0.00019,2]
[402080805,1768513834612,-538.06736554,0.00019068,2]
[402080806,1768513834621,-500.0,0.00019068,2]
[402080807,1768513834631,-626.49258738,0.00019068,2]
[402080808,1768513834640,-1266.18203271,0.00019068,2]
[402080809,1768513834651,-1523.59280854,0.00019068,2]
[402080810,1768513834663,-500.0,0.00019068,2]
[402080811,1768513834673,-1000.0,0.00019068,2]
[402080812,1768513834687,-1000.0,0.00019068,2]
[402080813,1768513834697,-500.0,0.00019068,2]
[402080814,1768513834707,-1536.32316389,0.00019068,2]
[402080815,1768513834717,-435.0100479,0.00019068,2]
[402080816,1768513834728,-1103.72905413,0.00019068,2]
[402080817,1768513834738,-231.49858572,0.00019068,2]
[402080818,1768513834753,-768.50141428,0.00019068,2]
[402080819,1768513834763,-500.0,0.00019068,2]
[402080820,1768513834772,-1000.0,0.00019068,2]
[402080821,1768513834782,-500.0,0.00019068,2]
[402080822,1768513834791,-500.0,0.00019068,2]
[402080823,1768513834800,-650.0,0.00019068,2]
[402080824,1768513834809,-1000.0,0.00019068,2]
[402080825,1768513834819,-1500.0,0.00019068,2]
[402080826,1768513834828,-1000.0,0.00019068,2]
[402080827,1768513834837,-777.82798039,0.00019068,2]
[402080828,1768513834847,-1000.0,0.00019068,2]
[402080829,1768513834856,-1000.0,0.00019068,2]
[402080830,1768513834866,-200.18597771,0.00019082,2]
[402080831,1768513834875,-235.0,0.00019087,2]
[402080832,1768513834884,-587.0,0.00019113,2]
[402080833,1768513834894,-166.66,0.00019123,2]
[402080834,1768513834905,-2500.0,0.00019164,2]
[402080835,1768513834914,-2500.0,0.00019164,2]
[402080836,1768513834924,-907.0,0.00019178,2]
[402080837,1768513834933,-235.0,0.00019185,2]
[402080838,1768513834942,-1660.31,0.00019194,2]
[402080839,1768513834952,-395.19,0.000192,3]
[402080840,1768513834961,-235.0,0.00019221,2]
[402080841,1768513834970,-1101.0,0.00019273,2]
[402080842,1768513834980,-1600.0,0.00019285,2]
[402080843,1768513834989,-2351.0,0.00019306,2]
[402080844,1768513834998,-1660.31,0.00019468,2]
[402080845,1768513835007,-235.0,0.00019491,2]
[402080846,1768513835016,-235.0,0.00019543,2]
[402080847,1768513835026,-235.0,0.00019553,2]
[402080848,1768513835035,-235.0,0.0001956,2]
[402080849,1768513835044,-235.0,0.00019693,2]
[402080850,1768513835053,-166.66,0.00019697,2]
[402080851,1768513835063,-900.0,0.00019712,2]
[402080852,1768513835072,-3000.0,0.00019712,2]
[402080853,1768513835081,-2896.03010423,0.00019712,2]
[402080854,1768513835091,-1660.31,0.00019742,2]
[402080855,1768513835101,-500.0,0.00019747,2]
[402080856,1768513835110,-463.03847745,0.00019747,2]
[402080857,1768513835119,-500.0,0.00019747,2]
[402080858,1768513835128,-1660.31,0.00020016,2]
[402080859,1768513835138,-1000.0,0.0002026,2]
[402080860,1768513835147,-166.66,0.00020272,2]
[402080861,1768513835156,-1101.0,0.00020287,2]
[402080862,1768513835165,-1660.31,0.0002029,2]
[402080863,1768513835174,-1483.43426034,0.00020455,2]
[402080864,1768513835183,-962.0,0.00020521,2]
[402080865,1768513835193,-1660.44,0.00020564,2]
[402080866,1768513835201,-446.97,0.00020803,2]
[402080867,1768513835211,-823.0,0.00020898,2]
[402080868,1768513835220,-500.0,0.00020934,2]
[402080869,1768513835230,-483.51959057,0.00020934,2]
[402080870,1768513835239,-428.46849167,0.00020934,2]
[402080871,1768513835249,-250.58,0.00020987,2]
[402080872,1768513835258,-446.97,0.00021077,2]
[402080873,1768513835267,-250.0,0.00021128,2]
[402080874,1768513835276,-3292.0,0.00021214,2]
[402080875,1768513835285,-195.4941314,0.00021293,2]
[402080876,1768513835295,-306.06,0.00021351,2]
[402080877,1768513835304,-1101.0,0.00021355,2]
[402080878,1768513835313,-1600.0,0.00021428,2]
[402080879,1768513835322,-395.19,0.000222,4]
[402080880,1768513835331,-346.0666153,0.00022233,2]
[402080881,1768513835341,-151.0,0.0002241,2]
[402080882,1768513835350,-156.587,0.0002241,2]
[402080883,1768513835359,-162.380719,0.0002241,2]
[402080884,1768513835369,-155.82642991,0.0002241,2]
[402080885,1768513835378,-9000.0,0.0002241,2]
[402080886,1768513835387,-9000.0,0.0002241,2]
[402080887,1768513835396,-1101.0,0.00022479,2]
[402080888,1768513835405,-392.4687456,0.00022519,2]
[402080889,1768513835414,-231.68548246,0.00022595,2]
[402080890,1768513835423,-1483.43426034,0.00022685,2]
[402080891,1768513835432,-962.0,0.00022688,2]
[402080892,1768513835442,-1152.0,0.00022848,2]
[402080893,1768513835452,-250.58,0.00023086,2]
[402080894,1768513835464,-4609.0,0.00023311,2]
[402080895,1768513835474,-1600.0,0.00023571,2]
[402080896,1768513835484,-1101.0,0.00023662,2]
[402080897,1768513835494,-500.0,0.00024355,2]
[402080898,1768513835503,-1000.0,0.00024658,2]
[402080899,1768513835513,-163.9596246,0.00024773,2]
[402080900,1768513835522,-962.0,0.00024855,2]
[402080901,1768513835532,-1000.0,0.000249,2]
[402080902,1768513835542,-31039.9616438,0.000249,2]
[402080903,1768513835551,-1101.0,0.00024907,2]
[402080904,1768513835561,-1483.43426034,0.00024915,2]
[402080905,1768513835570,-1613.0,0.00024981,2]
[402080906,1768513835579,-1349.56354973,0.00025026,2]
[402080907,1768513835588,-250.58,0.00025185,2]
[402080908,1768513835597,-1000.0,0.00025273,30]
[402080909,1768513835606,-1000.0,0.00025273,30]
[402080910,1768513835615,-1000.0,0.00025273,30]
[402080911,1768513835625,-1000.0,0.00025273,30]
[402080912,1768513835635,-1000.0,0.00025273,30]
[402080913,1768513835644,-1000.0,0.00025273,30]
[402080914,1768513835653,-1000.0,0.00025273,30]
[402080915,1768513835663,-1000.0,0.00025273,30]
[402080916,1768513835673,-1000.0,0.00025385,30]
[402080917,1768513835686,-1000.0,0.00025385,30]
[402080918,1768513835695,-1000.0,0.00025385,30]
[402080919,1768513835705,-1000.0,0.00025385,30]
[402080920,1768513835715,-346.0666153,0.00025567,2]
[402080921,1768513835725,-6453.0,0.00025615,2]
[402080922,1768513835735,-3807.39531957,0.00025666,7]
[402080923,1768513835746,-1101.0,0.00026218,2]
[402080924,1768513835757,-200.0,0.00026234,2]
[402080925,1768513835768,-500.0,0.00026234,2]
[402080926,1768513835777,-233.43,0.00026641,2]
[402080927,1768513835786,-6716.69664871,0.00026666,7]
[402080928,1768513835795,-3654.17362581,0.00026666,7]
[402080929,1768513835808,-1120.75944784,0.00026666,7]
[402080930,1768513835819,-1482.9015306,0.00026666,7]
[402080931,1768513835831,-1015.1628788,0.00026666,7]
[402080935,1768513837634,-347.58102532,0.00026666,7]
[402080936,1768513837646,-2032.3295424,0.00026666,7]
[402080937,1768513837658,-394.86843645,0.00026666,7]
[402080938,1768513837667,-207.39,0.00026697,2]
[402080939,1768513837676,-249.74156376,0.00026749,2]
[402080941,1768513837694,-34.48843624,0.00026749,2]
[402080943,1768513837703,-962.0,0.00027022,2]
[402080945,1768513837713,-1483.43426034,0.00027144,2]
[402080947,1768513837722,-433.74531814,0.00027166,7]
[402080950,1768513837741,-431.31190776,0.00027166,7]
[402080952,1768513837753,-1056.89806984,0.00027166,7]
[402080954,1768513837765,-11673.04150426,0.00027166,7]
[402080955,1768513837775,-250.58,0.00027284,2]
[402080957,1768513837784,-195.59,0.00027304,2]
[402080959,1768513837793,-1418.0,0.00027313,2]
[402080961,1768513837802,-150.0,0.00027369,2]
[402080963,1768513837811,-500.0,0.00027397,20]
[402080965,1768513837820,-1101.0,0.00027598,5]
[402080966,1768513837830,-195.58,0.00027678,2]
[402080968,1768513837839,-500.0,0.00027775,10]
[402080970,1768513837848,-3833.0,0.00028146,2]
[402080972,1768513837858,-1404.0,0.000282,5]
[402080974,1768513837867,-150.0,0.0002863,2]
[402080976,1768513837876,-346.0666153,0.000289,2]
[402080978,1768513837885,-1101.0,0.00028978,5]
[402080980,1768513837894,-306.0,0.000291,2]
[402080982,1768513837904,-962.0,0.00029189,2]
[402080984,1768513837913,-395.19,0.000293,7]
[402080986,1768513837922,-1483.43426034,0.00029374,2]
[402080988,1768513837931,-250.58,0.00029382,2]
[402080990,1768513837941,-8011.0,0.00029465,5]
[402080992,1768513837950,-1335.840463,0.00030137,15]
[402080994,1768513837959,-1101.0,0.00030427,5]
[402080996,1768513837968,-15201.19591663,0.00030734,30]
[402080998,1768513837977,-500.0,0.00031195,10]
[402080999,1768513837986,-5729.0,0.00031299,2]
[402081000,1768513837996,-962.0,0.00031356,2]
[402081001,1768513838005,-2276.03,0.00031457,2]
[402081002,1768513838016,-250.58,0.00031481,2]
[402081003,1768513838026,-150.0,0.00031493,2]
[402081004,1768513838036,-1483.43426034,0.00031604,2]
[402081005,1768513838045,-155.73019087,0.00031726,60]
[402081006,1768513838055,-162.81993177,0.00031726,60]
[402081007,1768513838064,-500.0,0.00031726,60]
[402081008,1768513838072,-158.73243079,0.00031726,60]
[402081009,1768513838082,-500.0,0.00031726,60]
[402081010,1768513838092,-500.0,0.00031726,60]
[402081011,1768513838101,-150.0,0.00031726,60]
[402081012,1768513838111,-500.0,0.00031726,60]
[402081013,1768513838121,-500.0,0.00031726,60]
[402081014,1768513838131,-467.0,0.00031726,60]
[402081015,1768513838140,-150.0,0.00031726,60]
[402081016,1768513838150,-500.0,0.00031726,60]
[402081017,1768513838160,-500.0,0.00031726,60]
[402081018,1768513838169,-150.0,0.00031726,2]
[402081019,1768513838179,-150.0,0.00031726,60]
[402081020,1768513838188,-500.0,0.00031726,60]
[402081021,1768513838199,-150.0,0.00031726,2]
[402081022,1768513838208,-500.0,0.00031726,60]
[402081023,1768513838218,-500.0,0.00031726,60]
[402081024,1768513838229,-500.0,0.00031781,60]
[402081025,1768513838239,-500.0,0.00031781,60]
[402081026,1768513838248,-500.0,0.00031781,60]
[402081027,1768513838258,-150.0,0.00031781,60]
[402081028,1768513838267,-500.0,0.00031781,60]
[402081029,1768513838277,-500.0,0.00031781,60]
[402081030,1768513838287,-467.0,0.00031781,60]
[402081031,1768513838296,-150.0,0.00031781,60]
[402081032,1768513838306,-500.0,0.00031781,60]
[402081033,1768513838316,-400.0,0.00031781,60]
[402081034,1768513838325,-200.0,0.00031781,60]
[402081035,1768513838335,-500.0,0.00031781,60]
[402081036,1768513838344,-500.0,0.00031781,60]
[402081037,1768513838354,-500.0,0.00031781,60]
[402081038,1768513838363,-500.0,0.00031836,60]
[402081039,1768513838373,-500.0,0.00031836,60]
[402081040,1768513838383,-500.0,0.00031836,60]
[402081041,1768513838393,-165.70747679,0.00031836,60]
[402081042,1768513838403,-500.0,0.00031836,60]
[402081043,1768513838412,-303.58556021,0.00031836,60]
[402081044,1768513838421,-467.0,0.00031836,60]
[402081045,1768513838431,-150.0,0.00031836,60]
[402081046,1768513838440,-500.0,0.00031836,60]
[402081047,1768513838449,-648.69425671,0.00031836,60]
[402081048,1768513838459,-500.0,0.00031836,60]
[402081049,1768513838468,-500.0,0.00031836,60]
[402081050,1768513838477,-151.44482603,0.00031885,5]
[402081051,1768513838486,-500.0,0.0003189,60]
[402081052,1768513838496,-235.28780433,0.0003189,60]
[402081053,1768513838504,-500.0,0.0003189,60]
[402081054,1768513838514,-467.0,0.0003189,60]
[402081055,1768513838523,-150.0,0.0003189,60]
[402081056,1768513838533,-150.0,0.0003189,60]
[402081057,1768513838542,-150.0,0.0003189,60]
[402081058,1768513838552,-473.41495749,0.00031945,60]
[402081059,1768513838561,-295.1864425,0.00031945,60]
[402081060,1768513838571,-467.0,0.00031945,60]
[402081061,1768513838580,-216.76610752,0.00031945,60]
[402081062,1768513838590,-1101.0,0.00031948,5]
[402081063,1768513838599,-467.0,0.00032,60]
[402081064,1768513838609,-467.0,0.00032055,60]
[402081065,1768513838619,-467.0,0.0003211,60]
[402081066,1768513838629,-467.0,0.00032164,60]
[402081067,1768513838638,-467.0,0.00032219,60]
[402081068,1768513838648,-346.0666153,0.00032233,2]
[402081069,1768513838658,-467.0,0.00032274,60]
[402081070,1768513838667,-467.0,0.00032329,60]
[402081071,1768513838678,-467.0,0.00032384,60]
[402081072,1768513838689,-467.0,0.00032438,60]
[402081073,1768513838698,-467.0,0.00032493,60]
[402081074,1768513838707,-467.0,0.00032548,60]
[402081075,1768513838716,-500.0,0.00032575,2]
[402081076,1768513838726,-393.99,0.000326,10]
[402081077,1768513838735,-467.0,0.00032603,60]
[402081078,1768513838744,-467.0,0.00032658,60]
[402081079,1768513838753,-467.0,0.00032712,60]
[402081080,1768513838763,-467.0,0.00032767,60]
[402081081,1768513838772,-4823.0,0.00032789,2]
[402081082,1768513838781,-566.0,0.00032789,2]
[402081083,1768513838790,-914.0,0.00032789,2]
[402081084,1768513838799,-467.0,0.00032822,60]
[402081085,1768513838809,-467.0,0.00032877,60]
[402081086,1768513838818,-150.0,0.00032877,60]
[402081087,1768513838827,-938.0,0.00032877,60]
[402081088,1768513838836,-467.0,0.00032931,60]
[402081089,1768513838845,-150.0,0.00032932,60]
[402081090,1768513838854,-938.0,0.00032932,60]
[402081091,1768513838864,-468.0,0.00032986,60]
[402081092,1768513838873,-282.21849629,0.00032987,60]
[402081093,1768513838883,-938.0,0.00032987,60]
[402081094,1768513838893,-2276.03,0.0003303,2]
[402081095,1768513838903,-938.0,0.00033041,60]
[402081096,1768513838912,-938.0,0.00033096,60]
[402081097,1768513838922,-938.0,0.00033151,60]
[402081098,1768513838931,-938.0,0.00033206,60]
[402081099,1768513838941,-659.88473789,0.0003325,7]
[402081100,1768513838951,-938.0,0.00033261,60]
[402081101,1768513838961,-938.0,0.00033315,60]
[402081102,1768513838970,-938.0,0.0003337,60]
[402081103,1768513838979,-938.0,0.00033425,60]
[402081104,1768513838989,-938.0,0.0003348,60]
[402081105,1768513838998,-962.0,0.00033523,5]
[402081106,1768513839007,-938.0,0.00033535,60]
[402081107,1768513839017,-1101.0,0.00033546,5]
[402081108,1768513839026,-938.0,0.00033589,60]
[402081109,1768513839035,-918.90149509,0.00033629,2]
[402081110,1768513839044,-938.0,0.00033644,60]
[402081111,1768513839053,-1000.0,0.00033653,2]
[402081112,1768513839062,-158.00189965,0.00033654,7]
[402081113,1768513839071,-938.0,0.00033699,60]
[402081114,1768513839080,-500.0,0.00033728,10]
[402081115,1768513839090,-500.0,0.00033728,10]
[402081116,1768513839099,-150.0,0.00033728,5]
[402081117,1768513839109,-13819.3073243,0.00033729,2]
[402081118,1768513839118,-522024.8961968,0.00033729,2]
[402081119,1768513839128,-938.0,0.00033754,60]
[402081120,1768513839138,-817.0,0.000338,2]
[402081121,1768513839147,-938.0,0.00033809,60]
[402081122,1768513839157,-1483.43426034,0.00033834,2]
[402081123,1768513839166,-938.0,0.00033863,60]
[402081124,1768513839176,-250.0,0.00033918,35]
[402081125,1768513839185,-938.0,0.00033918,60]
[402081126,1768513839195,-938.0,0.00033973,60]
[402081127,1768513839205,-24303.0,0.00034,2]
[402081128,1768513839215,-938.0,0.00034028,60]
[402081130,1768513839224,-938.0,0.00034082,60]
[402081132,1768513839233,-942.73707417,0.00034137,60]
[402081134,1768513839243,-150.0,0.000342,30]
[402081136,1768513839252,-500.0,0.0003425,30]
[402081138,1768513839262,-158.00189963,0.00034277,8]
[402081140,1768513839272,-150.0,0.00034356,2]
[402081142,1768513839282,-250.0,0.00034411,30]
[402081144,1768513839291,-500.0,0.000345,30]
[402081146,1768513839301,-2276.03,0.00034603,2]
[402081148,1768513839310,-3562.65,0.00034607,2]
[402081150,1768513839319,-1000.0,0.0003462,2]
[402081152,1768513839328,-150.0,0.00034724,2]
[402081154,1768513839337,-1064.30625847,0.00034811,2]
[402081156,1768513839347,-150.0,0.00034835,2]
[402081158,1768513839358,-158.00189963,0.00034899,8]
[402081160,1768513839367,-1000.0,0.0003492,2]
[402081162,1768513839377,-150.0,0.0003494,2]
[402081164,1768513839387,-174.84632366,0.00034945,2]
[402081166,1768513839398,-1008.18152075,0.00034989,2]
[402081168,1768513839407,-151.0,0.00034996,14]
[402081170,1768513839417,-300.0,0.00034999,30]
[402081172,1768513839426,-500.0,0.00034999,30]
[402081174,1768513839435,-500.0,0.00034999,30]
[402081176,1768513839444,-1000.0,0.00034999,30]
[402081178,1768513839453,-151.0,0.00034999,30]
[402081180,1768513839462,-414.0,0.00034999,30]
[402081182,1768513839471,-500.0,0.00034999,30]
[402081184,1768513839480,-2000.0,0.00034999,30]
[402081187,1768513839490,-311.1,0.00034999,30]
[402081190,1768513839499,-500.0,0.00034999,30]
[402081193,1768513839508,-520.0,0.00034999,30]
[402081195,1768513839517,-500.0,0.00034999,30]
[402081197,1768513839526,-1000.0,0.00034999,30]
[402081199,1768513839535,-151.0,0.00034999,30]
[402081200,1768513839543,-429.318,0.00034999,30]
[402081202,1768513839552,-151.0,0.00034999,30]
[402081204,1768513839561,-2000.0,0.00034999,30]
[402081206,1768513839570,-500.0,0.00034999,30]
[402081207,1768513839580,-322.6107,0.00034999,30]
[402081208,1768513839590,-500.0,0.00034999,30]
[402081209,1768513839599,-3000.0,0.00034999,30]
[402081210,1768513839608,-539.24,0.00034999,30]
[402081211,1768513839617,-500.0,0.00034999,30]
[402081212,1768513839627,-1000.0,0.00034999,30]